[Event "Titled Tuesday Blitz March 21 Early 2023"]
[White "Zanette, Edgard Vinicius"]
[Black "Mackster23"]
[WhiteFideId "2109263"]
[WhiteElo "2211"]
[BlackElo "2538"]
[Result "1/2-1/2"]
[Round "02"]
[TimeControl "180+2"]
[Date "2023.03.21"]
[WhiteClock "0:00:13"]
[BlackClock "0:00:21"]

1. e4 {[%clk 0:03:00]}  e6 {[%clk 0:02:58]} 2. d4 {[%clk 0:03:00]}  d5 {[%clk 0:02:57]} 3. Nd2 {[%clk 0:02:59]}  Nf6 {[%clk 0:02:57]} 4. e5 {[%clk 0:02:58]}  Nfd7 {[%clk 0:02:57]} 5. c3 {[%clk 0:02:57]}  c5 {[%clk 0:02:57]} 6. Ndf3 {[%clk 0:02:57]}  Nc6 {[%clk 0:02:55]} 7. Bd3 {[%clk 0:02:55]}  f6 {[%clk 0:02:48]} 8. exf6 {[%clk 0:02:54]}  Nxf6 {[%clk 0:02:47]} 9. Ne2 {[%clk 0:02:48]}  Bd6 {[%clk 0:02:46]} 10. Bf4 {[%clk 0:02:48]}  O-O {[%clk 0:02:44]} 11. O-O {[%clk 0:02:47]}  c4 {[%clk 0:02:35]} 12. Bb1 {[%clk 0:02:33]}  Nh5 {[%clk 0:02:34]} 13. Bxd6 {[%clk 0:02:32]}  Qxd6 {[%clk 0:02:33]} 14. Ng3 {[%clk 0:02:21]}  Nf4 {[%clk 0:02:09]} 15. Re1 {[%clk 0:02:16]}  Bd7 {[%clk 0:01:56]} 16. Ng5 {[%clk 0:02:02]}  g6 {[%clk 0:01:48]} 17. Ne2 {[%clk 0:01:56]}  Rae8 {[%clk 0:01:31]} 18. Nxf4 {[%clk 0:01:52]}  Qxf4 {[%clk 0:01:32]} 19. Nf3 {[%clk 0:01:49]}  g5 {[%clk 0:01:20]} 20. Qd2 {[%clk 0:01:31]}  Qxd2 {[%clk 0:00:49]} 21. Nxd2 {[%clk 0:01:32]}  e5 {[%clk 0:00:49]} 22. dxe5 {[%clk 0:01:30]}  Rxe5 {[%clk 0:00:49]} 23. Bc2 {[%clk 0:01:19]}  Bf5 {[%clk 0:00:48]} 24. Ba4 {[%clk 0:01:12]}  Rfe8 {[%clk 0:00:36]} 25. Nf3 {[%clk 0:01:03]}  Rxe1+ {[%clk 0:00:36]} 26. Rxe1 {[%clk 0:01:02]}  Rxe1+ {[%clk 0:00:37]} 27. Nxe1 {[%clk 0:01:03]}  Ne5 {[%clk 0:00:37]} 28. f3 {[%clk 0:00:56]}  Kf7 {[%clk 0:00:36]} 29. Kf2 {[%clk 0:00:55]}  Ke6 {[%clk 0:00:36]} 30. Ke3 {[%clk 0:00:54]}  Bg6 {[%clk 0:00:32]} 31. Bd1 {[%clk 0:00:47]}  Kd6 {[%clk 0:00:30]} 32. g3 {[%clk 0:00:38]}  Kc5 {[%clk 0:00:30]} 33. f4 {[%clk 0:00:38]}  gxf4+ {[%clk 0:00:30]} 34. gxf4 {[%clk 0:00:38]}  Nf7 {[%clk 0:00:30]} 35. Bc2 {[%clk 0:00:37]}  Nd6 {[%clk 0:00:28]} 36. Bxg6 {[%clk 0:00:27]}  hxg6 {[%clk 0:00:28]} 37. Nf3 {[%clk 0:00:26]}  Nf5+ {[%clk 0:00:28]} 38. Kd2 {[%clk 0:00:21]}  d4 {[%clk 0:00:22]} 39. cxd4+ {[%clk 0:00:20]}  Nxd4 {[%clk 0:00:23]} 40. Ne5 {[%clk 0:00:20]}  Kd5 {[%clk 0:00:17]} 41. Nxg6 {[%clk 0:00:20]}  Nf3+ {[%clk 0:00:18]} 42. Ke3 {[%clk 0:00:18]}  Nxh2 {[%clk 0:00:18]} 43. Ne5 {[%clk 0:00:13]}  Nf1+ {[%clk 0:00:19]} 44. Ke2 {[%clk 0:00:12]}  Ng3+ {[%clk 0:00:20]} 45. Kf3 {[%clk 0:00:12]}  Nf5 {[%clk 0:00:21]} 46. Ng4 {[%clk 0:00:08]}  Nd4+ {[%clk 0:00:21]} 47. Ke3 {[%clk 0:00:07]}  Nc2+ {[%clk 0:00:21]} 48. Kd2 {[%clk 0:00:07]}  Nb4 {[%clk 0:00:22]} 49. Ne3+ {[%clk 0:00:04]}  Kc5 {[%clk 0:00:21]} 50. a3 {[%clk 0:00:03]}  Nd3 {[%clk 0:00:21]} 51. f5 {[%clk 0:00:03]}  Nxb2 {[%clk 0:00:20]} 52. f6 {[%clk 0:00:04]}  Kd6 {[%clk 0:00:20]} 53. Kc3 {[%clk 0:00:03]}  Na4+ {[%clk 0:00:19]} 54. Kb4 {[%clk 0:00:03]}  Nb6 {[%clk 0:00:18]} 55. Nxc4+ {[%clk 0:00:03]}  Nxc4 {[%clk 0:00:19]} 56. Kxc4 {[%clk 0:00:04]}  Ke6 {[%clk 0:00:19]} 57. Kc5 {[%clk 0:00:04]}  Kxf6 {[%clk 0:00:19]} 58. Kd6 {[%clk 0:00:05]}  a5 {[%clk 0:00:19]} 59. a4 {[%clk 0:00:04]}  Kf5 {[%clk 0:00:19]} 60. Kc7 {[%clk 0:00:05]}  b5 {[%clk 0:00:18]} 61. axb5 {[%clk 0:00:05]}  a4 {[%clk 0:00:18]} 62. b6 {[%clk 0:00:06]}  a3 {[%clk 0:00:19]} 63. b7 {[%clk 0:00:06]}  a2 {[%clk 0:00:20]} 64. b8=Q {[%clk 0:00:07]}  a1=Q {[%clk 0:00:21]} 65. Qf8+ {[%clk 0:00:07]}  Ke4 {[%clk 0:00:22]} 66. Qe7+ {[%clk 0:00:07]}  Kd3 {[%clk 0:00:22]} 67. Qd6+ {[%clk 0:00:08]}  Ke3 {[%clk 0:00:22]} 68. Qc6 {[%clk 0:00:08]}  Qa7+ {[%clk 0:00:22]} 69. Qb7 {[%clk 0:00:09]}  Qc5+ {[%clk 0:00:22]} 70. Qc6 {[%clk 0:00:09]}  Qe7+ {[%clk 0:00:22]} 71. Qd7 {[%clk 0:00:09]}  Qe5+ {[%clk 0:00:23]} 72. Qd6 {[%clk 0:00:10]}  Qg7+ {[%clk 0:00:23]} 73. Qd7 {[%clk 0:00:10]}  Qc3+ {[%clk 0:00:23]} 74. Qc6 {[%clk 0:00:11]}  Qa3 {[%clk 0:00:23]} 75. Qd6 {[%clk 0:00:11]}  Qa7+ {[%clk 0:00:22]} 76. Kc6 {[%clk 0:00:11]}  Qa6+ {[%clk 0:00:22]} 77. Kd7 {[%clk 0:00:12]}  Qb7+ {[%clk 0:00:22]} 78. Qc7 {[%clk 0:00:12]}  Qd5+ {[%clk 0:00:22]} 79. Qd6 {[%clk 0:00:12]}  Qb5+ {[%clk 0:00:22]} 80. Qc6 {[%clk 0:00:12]}  Qd3+ {[%clk 0:00:22]} 81. Qd6 {[%clk 0:00:12]}  Qb3 {[%clk 0:00:20]} 82. Qe6+ {[%clk 0:00:12]}  Qxe6+ {[%clk 0:00:21]} 83. Kxe6 {[%clk 0:00:13]} 1/2-1/2


[Site "https://www.chess.com"]

[Event "Titled Tuesday Blitz March 21 Early 2023"]
[White "Levitan, Caleb Levi"]
[Black "Manukyan, Sargis V."]
[WhiteFideId "14332620"]
[BlackFideId "13303465"]
[WhiteElo "1963"]
[BlackElo "2236"]
[Result "0-1"]
[Round "02"]
[TimeControl "180+2"]
[Date "2023.03.21"]
[WhiteClock "0:00:14"]
[BlackClock "0:01:24"]

1. e4 {[%clk 0:03:00]}  c5 {[%clk 0:02:56]} 2. Nf3 {[%clk 0:03:00]}  Nc6 {[%clk 0:02:56]} 3. Nc3 {[%clk 0:02:54]}  g6 {[%clk 0:02:54]} 4. d4 {[%clk 0:02:49]}  cxd4 {[%clk 0:02:54]} 5. Nxd4 {[%clk 0:02:50]}  Bg7 {[%clk 0:02:51]} 6. Be3 {[%clk 0:02:47]}  Nf6 {[%clk 0:02:51]} 7. Bc4 {[%clk 0:02:40]}  O-O {[%clk 0:02:51]} 8. f3 {[%clk 0:02:27]}  Qb6 {[%clk 0:02:50]} 9. Bb3 {[%clk 0:02:15]}  Nxe4 {[%clk 0:02:47]} 10. Nd5 {[%clk 0:01:56]}  Qa5+ {[%clk 0:02:47]} 11. c3 {[%clk 0:01:56]}  Bxd4 {[%clk 0:02:44]} 12. Bxd4 {[%clk 0:01:51]}  Nc5 {[%clk 0:02:40]} 13. Bc2 {[%clk 0:01:44]}  Ne6 {[%clk 0:02:33]} 14. Be3 {[%clk 0:01:39]}  d6 {[%clk 0:02:26]} 15. h4 {[%clk 0:01:36]}  Ng7 {[%clk 0:02:22]} 16. h5 {[%clk 0:01:29]}  Be6 {[%clk 0:02:14]} 17. Nf4 {[%clk 0:01:12]}  Bf5 {[%clk 0:02:10]} 18. hxg6 {[%clk 0:01:06]}  hxg6 {[%clk 0:02:06]} 19. g4 {[%clk 0:01:03]}  Bxc2 {[%clk 0:02:04]} 20. Qxc2 {[%clk 0:01:04]}  Ne5 {[%clk 0:02:05]} 21. Kf2 {[%clk 0:00:57]}  Rfc8 {[%clk 0:01:56]} 22. Kg3 {[%clk 0:00:49]}  f5 {[%clk 0:01:35]} 23. Qb3+ {[%clk 0:00:19]}  Nc4 {[%clk 0:01:31]} 24. Nxg6 {[%clk 0:00:20]}  Kf7 {[%clk 0:01:28]} 25. Nf4 {[%clk 0:00:16]}  b5 {[%clk 0:01:24]} 26. gxf5 {[%clk 0:00:14]}  Nxf5+ {[%clk 0:01:23]} 27. Kf2 {[%clk 0:00:15]}  Nxe3 {[%clk 0:01:24]} 28. Rh7+ {[%clk 0:00:13]}  Ke8 {[%clk 0:01:24]} 29. Rh8+ {[%clk 0:00:13]}  Kd7 {[%clk 0:01:25]} 30. Rxc8 {[%clk 0:00:13]}  Rxc8 {[%clk 0:01:25]} 31. Qb4 {[%clk 0:00:10]}  Qxb4 {[%clk 0:01:23]} 32. cxb4 {[%clk 0:00:11]}  Rh8 {[%clk 0:01:23]} 33. Rc1 {[%clk 0:00:11]}  Rh2+ {[%clk 0:01:22]} 34. Kg3 {[%clk 0:00:12]}  Rxb2 {[%clk 0:01:21]} 35. a4 {[%clk 0:00:12]}  a6 {[%clk 0:01:21]} 36. axb5 {[%clk 0:00:12]}  axb5 {[%clk 0:01:22]} 37. Nd3 {[%clk 0:00:12]}  Rd2 {[%clk 0:01:20]} 38. Rc3 {[%clk 0:00:12]}  e5 {[%clk 0:01:20]} 39. f4 {[%clk 0:00:11]}  e4 {[%clk 0:01:20]} 40. Nf2 {[%clk 0:00:11]}  Rxf2 {[%clk 0:01:19]} 41. Kxf2 {[%clk 0:00:11]}  Nd1+ {[%clk 0:01:19]} 42. Ke1 {[%clk 0:00:11]}  Nxc3 {[%clk 0:01:20]} 43. f5 {[%clk 0:00:12]}  Ke7 {[%clk 0:01:20]} 44. f6+ {[%clk 0:00:13]}  Kxf6 {[%clk 0:01:21]} 45. Kf1 {[%clk 0:00:11]}  Ke5 {[%clk 0:01:22]} 46. Ke1 {[%clk 0:00:12]}  Kf4 {[%clk 0:01:23]} 47. Kf1 {[%clk 0:00:12]}  e3 {[%clk 0:01:23]} 48. Ke1 {[%clk 0:00:13]}  Kf3 {[%clk 0:01:23]} 49. Kf1 {[%clk 0:00:13]}  Ne5 {[%clk 0:01:21]} 50. Ke1 {[%clk 0:00:14]}  Nd3+ {[%clk 0:01:22]} 51. Kf1 {[%clk 0:00:14]}  e2+ {[%clk 0:01:22]} 52. Kg1 {[%clk 0:00:13]}  e1=Q+ {[%clk 0:01:23]} 53. Kh2 {[%clk 0:00:14]}  Qg3+ {[%clk 0:01:24]} 0-1


[Site "https://www.chess.com"]

[Event "Titled Tuesday Blitz March 21 Early 2023"]
[White "Golubev, Mikhail"]
[Black "TigranHH"]
[WhiteFideId "14100983"]
[WhiteElo "2374"]
[BlackElo "2267"]
[Result "1/2-1/2"]
[Round "02"]
[TimeControl "180+2"]
[Date "2023.03.21"]
[WhiteClock "0:00:07"]
[BlackClock "0:00:27"]

1. e4 {[%clk 0:03:00]}  c6 {[%clk 0:02:58]} 2. d4 {[%clk 0:03:00]}  d5 {[%clk 0:02:59]} 3. Nc3 {[%clk 0:03:00]}  dxe4 {[%clk 0:02:59]} 4. Nxe4 {[%clk 0:03:00]}  Nf6 {[%clk 0:03:00]} 5. Nxf6+ {[%clk 0:02:59]}  exf6 {[%clk 0:03:01]} 6. c3 {[%clk 0:02:58]}  Bd6 {[%clk 0:03:01]} 7. Bd3 {[%clk 0:02:58]}  O-O {[%clk 0:03:01]} 8. Ne2 {[%clk 0:02:59]}  Re8 {[%clk 0:03:00]} 9. O-O {[%clk 0:02:59]}  Nd7 {[%clk 0:02:59]} 10. Ng3 {[%clk 0:02:56]}  Nf8 {[%clk 0:02:56]} 11. Nf5 {[%clk 0:02:50]}  Bxf5 {[%clk 0:02:37]} 12. Bxf5 {[%clk 0:02:51]}  Qa5 {[%clk 0:02:37]} 13. Bc2 {[%clk 0:02:43]}  Re7 {[%clk 0:02:35]} 14. Qf3 {[%clk 0:02:35]}  Rae8 {[%clk 0:02:32]} 15. Be3 {[%clk 0:02:28]}  Ng6 {[%clk 0:02:11]} 16. b4 {[%clk 0:02:16]}  Qc7 {[%clk 0:02:10]} 17. g3 {[%clk 0:02:09]}  a5 {[%clk 0:02:10]} 18. a3 {[%clk 0:02:05]}  Nf8 {[%clk 0:01:53]} 19. Kg2 {[%clk 0:02:01]}  Ne6 {[%clk 0:01:49]} 20. h4 {[%clk 0:01:52]}  Nf8 {[%clk 0:01:35]} 21. h5 {[%clk 0:01:42]}  h6 {[%clk 0:01:35]} 22. Rae1 {[%clk 0:01:31]}  b6 {[%clk 0:01:33]} 23. Bd2 {[%clk 0:01:11]}  axb4 {[%clk 0:01:23]} 24. axb4 {[%clk 0:01:11]}  Ne6 {[%clk 0:01:17]} 25. Qf5 {[%clk 0:01:03]}  Nf8 {[%clk 0:01:14]} 26. Rxe7 {[%clk 0:00:56]}  Rxe7 {[%clk 0:01:13]} 27. Re1 {[%clk 0:00:50]}  Rxe1 {[%clk 0:00:50]} 28. Bxe1 {[%clk 0:00:51]}  Qe7 {[%clk 0:00:50]} 29. Bd2 {[%clk 0:00:51]}  Qe2 {[%clk 0:00:50]} 30. Qd3 {[%clk 0:00:45]}  Qxh5 {[%clk 0:00:48]} 31. Be3 {[%clk 0:00:24]}  g6 {[%clk 0:00:33]} 32. Bd1 {[%clk 0:00:21]}  Qd5+ {[%clk 0:00:33]} 33. Bf3 {[%clk 0:00:20]}  Qb5 {[%clk 0:00:26]} 34. Qxb5 {[%clk 0:00:20]}  cxb5 {[%clk 0:00:27]} 35. Be2 {[%clk 0:00:20]}  f5 {[%clk 0:00:25]} 36. Bxb5 {[%clk 0:00:19]}  Ne6 {[%clk 0:00:25]} 37. d5 {[%clk 0:00:15]}  f4 {[%clk 0:00:24]} 38. Bxb6 {[%clk 0:00:10]}  Ng5 {[%clk 0:00:20]} 39. gxf4 {[%clk 0:00:10]}  Bxf4 {[%clk 0:00:20]} 40. c4 {[%clk 0:00:11]}  Bd2 {[%clk 0:00:19]} 41. Ba5 {[%clk 0:00:09]}  Ne4 {[%clk 0:00:20]} 42. c5 {[%clk 0:00:07]}  Nxc5 {[%clk 0:00:20]} 43. bxc5 {[%clk 0:00:07]}  Bxa5 {[%clk 0:00:21]} 44. Kf3 {[%clk 0:00:05]}  Bb4 {[%clk 0:00:20]} 45. c6 {[%clk 0:00:04]}  Bd6 {[%clk 0:00:21]} 46. Ba6 {[%clk 0:00:05]}  Kg7 {[%clk 0:00:20]} 47. Bc8 {[%clk 0:00:05]}  Kf6 {[%clk 0:00:19]} 48. Bd7 {[%clk 0:00:05]}  Ke5 {[%clk 0:00:19]} 49. Be8 {[%clk 0:00:05]}  Kxd5 {[%clk 0:00:16]} 50. Bxf7+ {[%clk 0:00:05]}  Kxc6 {[%clk 0:00:16]} 51. Bxg6 {[%clk 0:00:06]}  Kd5 {[%clk 0:00:16]} 52. Bh5 {[%clk 0:00:06]}  Ke5 {[%clk 0:00:16]} 53. Kg2 {[%clk 0:00:07]}  Kf4 {[%clk 0:00:16]} 54. Bf3 {[%clk 0:00:06]}  Be5 {[%clk 0:00:17]} 55. Bc6 {[%clk 0:00:06]}  Bd6 {[%clk 0:00:18]} 56. Bd7 {[%clk 0:00:07]}  Be5 {[%clk 0:00:19]} 57. Bh3 {[%clk 0:00:07]}  Bd6 {[%clk 0:00:20]} 58. Bc8 {[%clk 0:00:07]}  Be5 {[%clk 0:00:21]} 59. Be6 {[%clk 0:00:08]}  Bd6 {[%clk 0:00:22]} 60. Bh3 {[%clk 0:00:07]}  Be5 {[%clk 0:00:22]} 61. Bc8 {[%clk 0:00:06]}  Bd6 {[%clk 0:00:23]} 62. Bh3 {[%clk 0:00:06]}  Be5 {[%clk 0:00:24]} 63. Bd7 {[%clk 0:00:06]}  Bd6 {[%clk 0:00:25]} 64. Bc8 {[%clk 0:00:06]}  Be5 {[%clk 0:00:26]} 65. Bd7 {[%clk 0:00:07]}  Bd6 {[%clk 0:00:27]} 66. Bc8 {[%clk 0:00:07]} 1/2-1/2


[Site "https://www.chess.com"]

[Event "Titled Tuesday Blitz March 21 Early 2023"]
[White "Janaszak, Dawid"]
[Black "Barria Santos, Jose Guilherme"]
[WhiteFideId "1119206"]
[BlackFideId "1939300"]
[WhiteElo "2220"]
[BlackElo "2301"]
[Result "1-0"]
[Round "02"]
[TimeControl "180+2"]
[Date "2023.03.21"]
[WhiteClock "0:01:08"]
[BlackClock "0:00:08"]

1. e4 {[%clk 0:02:59]}  c5 {[%clk 0:03:00]} 2. Nc3 {[%clk 0:02:56]}  d6 {[%clk 0:02:56]} 3. f4 {[%clk 0:02:54]}  g6 {[%clk 0:02:56]} 4. Nf3 {[%clk 0:02:54]}  Bg7 {[%clk 0:02:56]} 5. Bc4 {[%clk 0:02:55]}  Nc6 {[%clk 0:02:56]} 6. O-O {[%clk 0:02:55]}  e6 {[%clk 0:02:57]} 7. d4 {[%clk 0:02:55]}  cxd4 {[%clk 0:02:56]} 8. Nb5 {[%clk 0:02:55]}  Nge7 {[%clk 0:02:43]} 9. Bb3 {[%clk 0:02:54]}  O-O {[%clk 0:02:38]} 10. Nbxd4 {[%clk 0:02:53]}  Bd7 {[%clk 0:02:18]} 11. c3 {[%clk 0:02:46]}  Rc8 {[%clk 0:02:16]} 12. Kh1 {[%clk 0:02:45]}  Na5 {[%clk 0:02:08]} 13. Bc2 {[%clk 0:02:45]}  d5 {[%clk 0:02:07]} 14. e5 {[%clk 0:02:43]}  a6 {[%clk 0:01:51]} 15. Qe1 {[%clk 0:02:43]}  f6 {[%clk 0:01:43]} 16. exf6 {[%clk 0:02:40]}  Rxf6 {[%clk 0:01:42]} 17. Ng5 {[%clk 0:02:34]}  Qb6 {[%clk 0:01:38]} 18. Rb1 {[%clk 0:02:22]}  h6 {[%clk 0:01:35]} 19. Ngf3 {[%clk 0:02:19]}  Nec6 {[%clk 0:01:27]} 20. Be3 {[%clk 0:02:16]}  Nc4 {[%clk 0:01:26]} 21. Bg1 {[%clk 0:02:06]}  Qc7 {[%clk 0:01:13]} 22. g3 {[%clk 0:02:03]}  Ne7 {[%clk 0:01:02]} 23. Bd3 {[%clk 0:01:58]}  Nf5 {[%clk 0:00:59]} 24. Nxf5 {[%clk 0:01:51]}  exf5 {[%clk 0:00:56]} 25. Bd4 {[%clk 0:01:50]}  Rf7 {[%clk 0:00:49]} 26. Qf2 {[%clk 0:01:48]}  Bxd4 {[%clk 0:00:42]} 27. Nxd4 {[%clk 0:01:48]}  Nd6 {[%clk 0:00:39]} 28. Rfd1 {[%clk 0:01:38]}  Ne4 {[%clk 0:00:39]} 29. Bxe4 {[%clk 0:01:38]}  dxe4 {[%clk 0:00:33]} 30. Qe3 {[%clk 0:01:39]}  Bc6 {[%clk 0:00:29]} 31. Nc2 {[%clk 0:01:35]}  Rd8 {[%clk 0:00:29]} 32. Kg1 {[%clk 0:01:33]}  Rfd7 {[%clk 0:00:29]} 33. Rd4 {[%clk 0:01:33]}  Kf7 {[%clk 0:00:26]} 34. Rbd1 {[%clk 0:01:32]}  b5 {[%clk 0:00:24]} 35. h4 {[%clk 0:01:24]}  Qa7 {[%clk 0:00:25]} 36. Kh2 {[%clk 0:01:17]}  Qc7 {[%clk 0:00:19]} 37. Rxd7+ {[%clk 0:01:13]}  Rxd7 {[%clk 0:00:19]} 38. Rd4 {[%clk 0:01:12]}  h5 {[%clk 0:00:19]} 39. Qd2 {[%clk 0:01:12]}  Qb7 {[%clk 0:00:16]} 40. Ne3 {[%clk 0:01:11]}  Ke6 {[%clk 0:00:15]} 41. Qd1 {[%clk 0:01:09]}  Bd5 {[%clk 0:00:16]} 42. b3 {[%clk 0:01:08]}  Qc6 {[%clk 0:00:15]} 43. c4 {[%clk 0:01:08]}  bxc4 {[%clk 0:00:14]} 44. bxc4 {[%clk 0:01:05]}  Bxc4 {[%clk 0:00:10]} 45. Rxd7 {[%clk 0:01:06]}  Qxd7 {[%clk 0:00:09]} 46. Qxd7+ {[%clk 0:01:07]}  Kxd7 {[%clk 0:00:08]} 47. Nxc4 {[%clk 0:01:08]} 1-0


[Site "https://www.chess.com"]

[Event "Titled Tuesday Blitz March 21 Early 2023"]
[White "Rodriguez Santiago, Jaime"]
[Black "Lehtosaari, Mauri"]
[WhiteFideId "3100898"]
[BlackFideId "501999"]
[WhiteElo "2025"]
[BlackElo "2518"]
[Result "0-1"]
[Round "02"]
[TimeControl "180+2"]
[Date "2023.03.21"]
[WhiteClock "0:00:46"]
[BlackClock "0:00:59"]

1. c4 {[%clk 0:03:00]}  c6 {[%clk 0:02:59]} 2. d4 {[%clk 0:03:00]}  d5 {[%clk 0:02:59]} 3. cxd5 {[%clk 0:03:01]}  cxd5 {[%clk 0:02:59]} 4. Bf4 {[%clk 0:03:01]}  Nf6 {[%clk 0:03:00]} 5. e3 {[%clk 0:03:02]}  Nc6 {[%clk 0:02:57]} 6. Nc3 {[%clk 0:03:02]}  a6 {[%clk 0:02:56]} 7. Be2 {[%clk 0:03:01]}  Bf5 {[%clk 0:02:56]} 8. g4 {[%clk 0:03:02]}  Bg6 {[%clk 0:02:55]} 9. h4 {[%clk 0:03:02]}  h6 {[%clk 0:02:52]} 10. Bf3 {[%clk 0:02:56]}  e6 {[%clk 0:02:51]} 11. Nge2 {[%clk 0:02:55]}  Bd6 {[%clk 0:02:47]} 12. Kf1 {[%clk 0:02:52]}  Rc8 {[%clk 0:02:27]} 13. Rc1 {[%clk 0:02:45]}  b5 {[%clk 0:02:25]} 14. a4 {[%clk 0:02:05]}  b4 {[%clk 0:02:22]} 15. Nb1 {[%clk 0:02:04]}  Be4 {[%clk 0:02:15]} 16. Nd2 {[%clk 0:01:48]}  Bxf3 {[%clk 0:02:13]} 17. Nxf3 {[%clk 0:01:47]}  Ne4 {[%clk 0:02:03]} 18. Bxd6 {[%clk 0:01:40]}  Qxd6 {[%clk 0:02:04]} 19. Kg2 {[%clk 0:01:32]}  O-O {[%clk 0:01:57]} 20. Nf4 {[%clk 0:01:28]}  a5 {[%clk 0:01:37]} 21. g5 {[%clk 0:01:23]}  Kh8 {[%clk 0:01:32]} 22. Nd3 {[%clk 0:01:14]}  f6 {[%clk 0:01:26]} 23. Nf4 {[%clk 0:01:08]}  Kh7 {[%clk 0:01:12]} 24. g6+ {[%clk 0:01:04]}  Kg8 {[%clk 0:01:10]} 25. Rg1 {[%clk 0:00:53]}  Ne7 {[%clk 0:01:07]} 26. Qd3 {[%clk 0:00:48]}  Nf5 {[%clk 0:01:01]} 27. Kh1 {[%clk 0:00:46]}  Nxf2+ {[%clk 0:00:59]} 0-1


[Site "https://www.chess.com"]

[Event "Titled Tuesday Blitz March 21 Early 2023"]
[White "koncheto"]
[Black "Fajdetic, Hrvoje"]
[BlackFideId "14501945"]
[WhiteElo "2518"]
[BlackElo "2185"]
[Result "1-0"]
[Round "02"]
[TimeControl "180+2"]
[Date "2023.03.21"]
[WhiteClock "0:00:03"]
[BlackClock "0:00:01"]

1. e4 {[%clk 0:03:00]}  c5 {[%clk 0:02:55]} 2. Nf3 {[%clk 0:03:00]}  a6 {[%clk 0:02:55]} 3. d4 {[%clk 0:03:01]}  cxd4 {[%clk 0:02:55]} 4. Nxd4 {[%clk 0:03:01]}  Nf6 {[%clk 0:02:56]} 5. f3 {[%clk 0:03:01]}  e5 {[%clk 0:02:53]} 6. Nb3 {[%clk 0:03:01]}  d5 {[%clk 0:02:52]} 7. Bg5 {[%clk 0:03:01]}  dxe4 {[%clk 0:02:41]} 8. Qxd8+ {[%clk 0:03:00]}  Kxd8 {[%clk 0:02:42]} 9. Nc3 {[%clk 0:02:56]}  Bb4 {[%clk 0:02:21]} 10. O-O-O+ {[%clk 0:02:46]}  Ke8 {[%clk 0:02:16]} 11. Bxf6 {[%clk 0:02:36]}  gxf6 {[%clk 0:02:16]} 12. Nd5 {[%clk 0:02:31]}  Nc6 {[%clk 0:02:11]} 13. Nc7+ {[%clk 0:02:28]}  Ke7 {[%clk 0:02:12]} 14. Nxa8 {[%clk 0:02:28]}  Bf5 {[%clk 0:01:34]} 15. Nc7 {[%clk 0:01:47]}  exf3 {[%clk 0:01:24]} 16. gxf3 {[%clk 0:01:37]}  Bd6 {[%clk 0:01:15]} 17. Nd5+ {[%clk 0:01:36]}  Ke6 {[%clk 0:01:14]} 18. Bd3 {[%clk 0:01:21]}  Bg6 {[%clk 0:01:01]} 19. Rhe1 {[%clk 0:01:18]}  Rc8 {[%clk 0:00:51]} 20. Bc4 {[%clk 0:00:57]}  b5 {[%clk 0:00:45]} 21. Nb6+ {[%clk 0:00:26]}  bxc4 {[%clk 0:00:44]} 22. Nxc8 {[%clk 0:00:26]}  Bb4 {[%clk 0:00:34]} 23. Nd2 {[%clk 0:00:14]}  c3 {[%clk 0:00:33]} 24. bxc3 {[%clk 0:00:15]}  Bxc3 {[%clk 0:00:29]} 25. Ne4 {[%clk 0:00:15]}  Bxe1 {[%clk 0:00:29]} 26. Rxe1 {[%clk 0:00:12]}  Nd4 {[%clk 0:00:26]} 27. Nc5+ {[%clk 0:00:11]}  Kd5 {[%clk 0:00:25]} 28. Nb3 {[%clk 0:00:09]}  Nxc2 {[%clk 0:00:21]} 29. Re2 {[%clk 0:00:07]}  Nb4 {[%clk 0:00:20]} 30. Ne7+ {[%clk 0:00:07]}  Ke6 {[%clk 0:00:19]} 31. Nxg6 {[%clk 0:00:08]}  hxg6 {[%clk 0:00:18]} 32. a3 {[%clk 0:00:07]}  Nd3+ {[%clk 0:00:18]} 33. Kd2 {[%clk 0:00:07]}  Nf4 {[%clk 0:00:18]} 34. Nc5+ {[%clk 0:00:07]}  Kd5 {[%clk 0:00:17]} 35. Nxa6 {[%clk 0:00:08]}  Nxe2 {[%clk 0:00:17]} 36. Kxe2 {[%clk 0:00:09]}  f5 {[%clk 0:00:12]} 37. Nb4+ {[%clk 0:00:09]}  Kc4 {[%clk 0:00:12]} 38. Nc2 {[%clk 0:00:09]}  f4 {[%clk 0:00:10]} 39. Kd2 {[%clk 0:00:06]}  f5 {[%clk 0:00:10]} 40. h4 {[%clk 0:00:06]}  e4 {[%clk 0:00:10]} 41. Ke2 {[%clk 0:00:06]}  Kb3 {[%clk 0:00:01]} 42. Kd2 {[%clk 0:00:03]} 1-0


[Site "https://www.chess.com"]

[Event "Titled Tuesday Blitz March 21 Early 2023"]
[White "Bommini, Mounika Akshaya"]
[Black "Sonnenschein, Philipp"]
[WhiteFideId "25019872"]
[BlackFideId "16250877"]
[WhiteElo "2088"]
[BlackElo "2224"]
[Result "0-1"]
[Round "02"]
[TimeControl "180+2"]
[Date "2023.03.21"]
[WhiteClock "0:01:30"]
[BlackClock "0:01:25"]

1. d4 {[%clk 0:02:51]}  Nf6 {[%clk 0:02:59]} 2. Bf4 {[%clk 0:02:49]}  g6 {[%clk 0:02:58]} 3. Nc3 {[%clk 0:02:47]}  Bg7 {[%clk 0:02:57]} 4. e4 {[%clk 0:02:47]}  d5 {[%clk 0:02:58]} 5. e5 {[%clk 0:02:45]}  Ne4 {[%clk 0:02:58]} 6. Nxe4 {[%clk 0:02:42]}  dxe4 {[%clk 0:02:59]} 7. Ne2 {[%clk 0:02:35]}  c5 {[%clk 0:02:58]} 8. dxc5 {[%clk 0:02:31]}  Qa5+ {[%clk 0:02:55]} 9. Nc3 {[%clk 0:02:31]}  Nc6 {[%clk 0:02:44]} 10. Qd5 {[%clk 0:02:12]}  Bf5 {[%clk 0:02:28]} 11. O-O-O {[%clk 0:02:07]}  O-O {[%clk 0:02:12]} 12. h3 {[%clk 0:01:55]}  Rad8 {[%clk 0:02:04]} 13. Qb3 {[%clk 0:01:52]}  Rxd1+ {[%clk 0:01:53]} 14. Nxd1 {[%clk 0:01:52]}  Qxc5 {[%clk 0:01:39]} 15. Nc3 {[%clk 0:01:36]}  Qxf2 {[%clk 0:01:26]} 16. Ne2 {[%clk 0:01:30]}  Qe1# {[%clk 0:01:25]} 0-1


[Site "https://www.chess.com"]